{"text_format":"1","workbook":"xlsx","n_sheets":4,"sheets":["بيانات اساسية","كشف ","ورقة1","غياب شهري"],"not_rendered":{"charts":0,"images":0,"macros":1,"external_links":1,"defined_names":14,"comments":0,"pivot_tables":0},"unopened":[],"bounds":{"document_bytes":16777216,"sheet_cells":100000,"rows_first":2000,"rows_last":500,"rows_between":2000,"halvings":0,"cell_chars":16384,"cell_head_chars":4096},"cells_cut":0,"cells_raw":0,"read":"whole","date_system":"1900"}

{"sheet":"بيانات اساسية","index":0,"n_rows":88,"n_cols":49,"rows_kept":88,"cut":false,"hidden":false,"merged":[[0,46,2,46],[0,24,2,24],[0,26,2,26],[0,28,2,28],[0,30,2,30],[0,32,2,32],[0,34,2,34],[0,36,2,36],[0,38,2,38],[0,40,2,40],[0,42,2,42],[0,44,2,44],[0,22,2,22],[0,0,2,0],[0,2,2,2],[0,4,2,4],[0,6,2,6],[0,8,2,8],[0,10,2,10],[0,12,2,12],[0,14,2,14],[0,16,2,16],[0,18,2,18],[0,20,2,20]]}
["الرقم","العاشر أ","الرقم","العاشر ب","الرقم","العاشر ج","الرقم","العاشر د","الرقم","الحادي عشر العلمي أ","الرقم","الحادي عشر العلمي ب","الرقم","الحادي عشر العلمي ج","الرقم","الحادي عشر العلمي د","الرقم","الحادي عشر الادبي أ","الرقم","الحادي عشر الادبي ب","الرقم","الحادي عشر الادبي ج","الرقم","الحادي عشر الادبي د","الرقم","الحادي عشر الادبي هـ","الرقم","الحادي عشر الادبي و","الرقم","الثاني عشر العلمي ا","الرقم","الثاني عشر العلمي ب","الرقم","الثاني عشر العلمي ج","الرقم","الثاني عشر الادبي أ","الرقم","الثاني عشر الادبي ب","الرقم","الثاني عشر الادبي ج","الرقم","الثاني عشر الادبي د ","الرقم","الثاني عشر الادبي هـ","الرقم","الثاني عشر الادبي و","الرقم","الثاني عشر الادبي ز"]
[null,"عدد طلاب الشعبة ",null,"عدد طلاب الشعبة ",null,"عدد طلاب الشعبة ",null,"عدد طلاب الشعبة ",null,"عدد طلاب الشعبة ",null,"عدد طلاب الشعبة ",null,"عدد طلاب الشعبة ",null,"عدد طلاب الشعبة ",null,"عدد طلاب الشعبة ",null,"عدد طلاب الشعبة ",null,"عدد طلاب الشعبة ",null,"عدد طلاب الشعبة ",null,"عدد طلاب الشعبة ",null,"عدد طلاب الشعبة ",null,"عدد طلاب الشعبة ",null,"عدد طلاب الشعبة ",null,"عدد طلاب الشعبة ",null,"عدد طلاب الشعبة ",null,"عدد طلاب الشعبة ",null,"عدد طلاب الشعبة ",null,"عدد طلاب الشعبة ",null,"عدد طلاب الشعبة ",null,"عدد طلاب الشعبة ",null,"عدد طلاب الشعبة "]
[null,{"$f":"COUNTA(B4:B68)","v":64},null,{"$f":"COUNTA(D4:D68)","v":64},null,64,null,0,null,{"$f":"COUNTA(J4:J218)","v":0},null,{"$f":"COUNTA(L4:L68)","v":0},null,{"$f":"COUNTA(N4:N68)","v":0},null,{"$f":"COUNTA(P4:P218)","v":0},null,{"$f":"COUNTA(R4:R218)","v":0},null,{"$f":"COUNTA(T4:T68)","v":0},null,{"$f":"COUNTA(V4:V99)","v":0},null,{"$f":"COUNTA(X4:X68)","v":0},null,{"$f":"COUNTA(Z4:Z68)","v":0},null,{"$f":"COUNTA(AB4:AB68)","v":0},null,{"$f":"COUNTA(AD4:AD68)","v":0},null,{"$f":"COUNTA(AF4:AF68)","v":0},null,{"$f":"COUNTA(AH4:AH68)","v":0},null,{"$f":"COUNTA(AJ4:AJ68)","v":0},null,{"$f":"COUNTA(AL4:AL68)","v":0},null,{"$f":"COUNTA(AN4:AN68)","v":0},null,{"$f":"COUNTA(AP4:AP68)","v":0},null,{"$f":"COUNTA(AR4:AR68)","v":0},null,{"$f":"COUNTA(AT4:AT68)","v":0},null,{"$f":"COUNTA(AV4:AV68)","v":0},{"$f":"SUM(A3:AV3)","v":192}]
[1,"محمد 1",null,"خالد 1",null,"سالم 1"]
[2,"محمد 2",null,"خالد 2",null,"سالم 2"]
[3,"محمد 3",null,"خالد 3",null,"سالم 3"]
[4,"محمد 4",null,"خالد 4",null,"سالم 4"]
[5,"محمد 5",null,"خالد 5",null,"سالم 5"]
[6,"محمد 6",null,"خالد 6",null,"سالم 6"]
[7,"محمد 7",null,"خالد 7",null,"سالم 7"]
[8,"محمد 8",null,"خالد 8",null,"سالم 8"]
[9,"محمد 9",null,"خالد 9",null,"سالم 9"]
[10,"محمد 10",null,"خالد 10",null,"سالم 10"]
[11,"محمد 11",null,"خالد 11",null,"سالم 11"]
[12,"محمد 12",null,"خالد 12",null,"سالم 12"]
[13,"محمد 13",null,"خالد 13",null,"سالم 13"]
[14,"محمد 14",null,"خالد 14",null,"سالم 14"]
[15,"محمد 15",null,"خالد 15",null,"سالم 15"]
[16,"محمد 16",null,"خالد 16",null,"سالم 16"]
[17,"محمد 17",null,"خالد 17",null,"سالم 17"]
[18,"محمد 18",null,"خالد 18",null,"سالم 18"]
[19,"محمد 19",null,"خالد 19",null,"سالم 19"]
[20,"محمد 20",null,"خالد 20",null,"سالم 20"]
[21,"محمد 21",null,"خالد 21",null,"سالم 21"]
[22,"محمد 22",null,"خالد 22",null,"سالم 22"]
[23,"محمد 23",null,"خالد 23",null,"سالم 23"]
[24,"محمد 24",null,"خالد 24",null,"سالم 24"]
[25,"محمد 25",null,"خالد 25",null,"سالم 25"]
[26,"محمد 26",null,"خالد 26",null,"سالم 26"]
[27,"محمد 27",null,"خالد 27",null,"سالم 27"]
[28,"محمد 28",null,"خالد 28",null,"سالم 28"]
[29,"محمد 29",null,"خالد 29",null,"سالم 29"]
[30,"محمد 30",null,"خالد 30",null,"سالم 30"]
[31,"محمد 31",null,"خالد 31",null,"سالم 31"]
[32,"محمد 32",null,"خالد 32",null,"سالم 32"]
[33,"محمد 33",null,"خالد 33",null,"سالم 33"]
[34,"محمد 34",null,"خالد 34",null,"سالم 34"]
[35,"محمد 35",null,"خالد 35",null,"سالم 35"]
[36,"محمد 36",null,"خالد 36",null,"سالم 36"]
[37,"محمد 37",null,"خالد 37",null,"سالم 37"]
[38,"محمد 38",null,"خالد 38",null,"سالم 38"]
[39,"محمد 39",null,"خالد 39",null,"سالم 39"]
[40,"محمد 40",null,"خالد 40",null,"سالم 40"]
[41,"محمد 41",null,"خالد 41",null,"سالم 41"]
[42,"محمد 42",null,"خالد 42",null,"سالم 42"]
[43,"محمد 43",null,"خالد 43",null,"سالم 43"]
[44,"محمد 44",null,"خالد 44",null,"سالم 44"]
[45,"محمد 45",null,"خالد 45",null,"سالم 45"]
[46,"محمد 46",null,"خالد 46",null,"سالم 46"]
[47,"محمد 47",null,"خالد 47",null,"سالم 47"]
[48,"محمد 48",null,"خالد 48",null,"سالم 48"]
[49,"محمد 49",null,"خالد 49",null,"سالم 49"]
[50,"محمد 50",null,"خالد 50",null,"سالم 50"]
[51,"محمد 51",null,"خالد 51",null,"سالم 51"]
[52,"محمد 52",null,"خالد 52",null,"سالم 52"]
[53,"محمد 53",null,"خالد 53",null,"سالم 53"]
[54,"محمد 54",null,"خالد 54",null,"سالم 54"]
[55,"محمد 55",null,"خالد 55",null,"سالم 55"]
[56,"محمد 56",null,"خالد 56",null,"سالم 56"]
[57,"محمد 57",null,"خالد 57",null,"سالم 57"]
[58,"محمد 58",null,"خالد 58",null,"سالم 58"]
[59,"محمد 59",null,"خالد 59",null,"سالم 59"]
[60,"محمد 60",null,"خالد 60",null,"سالم 60"]
[61,"محمد 61",null,"خالد 61",null,"سالم 61"]
[62,"محمد 62",null,"خالد 62",null,"سالم 62"]
[63,"محمد 63",63,"خالد 63",63,"سالم 63",63,null,63,null,63,null,63,null,63,null,63,null,63,null,63,null,63,null,63,null,63,null,63,null,63,null,63]
[64,"محمد 64",64,"خالد 64",64,"سالم 64",64,null,64,null,64,null,64,null,64,null,64,null,64,null,64,null,64,null,64,null,64,null,64,null,64,null,64,null,64,null,64,null,64,null,64,null,64,null,64,null,64]
[]
[]
[]
[]
[]
[]
[]
[]
[]
[]
[]
[]
[]
[]
[]
[]
[]
[]
[]
[null,null,null,null,null,null,null,null,84,null,null,null,null,null,null,null,84]
[null,null,null,null,null,null,null,null,85,null,null,null,null,null,null,null,85]

{"sheet":"كشف ","index":1,"n_rows":71,"n_cols":41,"rows_kept":71,"cut":false,"hidden":false,"merged":[[4,2,6,2],[4,3,6,3],[0,3,0,37],[2,29,2,34],[1,25,1,28],[2,25,2,28],[3,25,3,28],[1,3,1,24],[1,29,1,34],[4,37,6,37],[3,10,3,13],[3,29,3,34],[4,4,4,34],[4,35,4,36]]}
[null,null,null,null,null,null,null,null,null,null,null,null,null,null,null,null,null,null,null,null,null,null,null,null,null,null,null,null,null,null,null,null,null,null,null,null,null,null,null,1,"كانون الثاني"]
[null,null,null,{"$f":"\"سجل الغياب  الشهري للطلبة عن شهر \"&AD3&\" للصف \"&AD2","v":"سجل الغياب  الشهري للطلبة عن شهر أيار للصف العاشر أ"},null,null,null,null,null,null,null,null,null,null,null,null,null,null,null,null,null,null,null,null,null,"الصف و الشعبة ",null,null,null,"العاشر أ",null,null,null,null,null,null,null,null,null,2,"شباط"]
[null,null,null,null,null,null,null,null,null,null,null,null,null,null,null,null,null,null,null,null,null,null,null,null,null,"الشهر ","الشهر",null,null,{"$f":"IFERROR(VLOOKUP(AJ3,monthNames,2,TRUE),\"\")","v":"أيار"},null,null,null,null,null,5,null,null,null,3,"آذار"]
[null,null,null,null,null,null,null,null,null,null,null,null,null,null,null,null,null,null,null,null,null,null,null,null,null,"السنة ","السنة",null,null,2022,null,null,null,null,null,null,null,null,null,4,"نيسان"]
[null,null,"ت","الاسم ",null,null,null,null,null,null,null,null,null,null,null,null,null,null,null,null,null,null,null,null,null,null,null,null,null,null,null,null,null,null,null,"المجموع",null,"انذار",null,5,"أيار"]
[null,null,null,null,{"$f":"IF(E7=\"\",\"\",INDEX({\"السبت\";\"الأحد\";\"الإثنين\";\"الثلاثاء\";\"الأربعاء\";\"الخميس\";\"الجمعة\"},WEEKDAY(E7,16)))","v":"الأحد"},{"$f":"IF(F7=\"\",\"\",INDEX({\"السبت\";\"الأحد\";\"الإثنين\";\"الثلاثاء\";\"الأربعاء\";\"الخميس\";\"الجمعة\"},WEEKDAY(F7,16)))","v":"الإثنين"},{"$f":"IF(G7=\"\",\"\",INDEX({\"السبت\";\"الأحد\";\"الإثنين\";\"الثلاثاء\";\"الأربعاء\";\"الخميس\";\"الجمعة\"},WEEKDAY(G7,16)))","v":"الثلاثاء"},{"$f":"IF(H7=\"\",\"\",INDEX({\"السبت\";\"الأحد\";\"الإثنين\";\"الثلاثاء\";\"الأربعاء\";\"الخميس\";\"الجمعة\"},WEEKDAY(H7,16)))","v":"الأربعاء"},{"$f":"IF(I7=\"\",\"\",INDEX({\"السبت\";\"الأحد\";\"الإثنين\";\"الثلاثاء\";\"الأربعاء\";\"الخميس\";\"الجمعة\"},WEEKDAY(I7,16)))","v":"الخميس"},{"$f":"IF(J7=\"\",\"\",INDEX({\"السبت\";\"الأحد\";\"الإثنين\";\"الثلاثاء\";\"الأربعاء\";\"الخميس\";\"الجمعة\"},WEEKDAY(J7,16)))","v":"الجمعة"},{"$f":"IF(K7=\"\",\"\",INDEX({\"السبت\";\"الأحد\";\"الإثنين\";\"الثلاثاء\";\"الأربعاء\";\"الخميس\";\"الجمعة\"},WEEKDAY(K7,16)))","v":"السبت"},{"$f":"IF(L7=\"\",\"\",INDEX({\"السبت\";\"الأحد\";\"الإثنين\";\"الثلاثاء\";\"الأربعاء\";\"الخميس\";\"الجمعة\"},WEEKDAY(L7,16)))","v":"الأحد"},{"$f":"IF(M7=\"\",\"\",INDEX({\"السبت\";\"الأحد\";\"الإثنين\";\"الثلاثاء\";\"الأربعاء\";\"الخميس\";\"الجمعة\"},WEEKDAY(M7,16)))","v":"الإثنين"},{"$f":"IF(N7=\"\",\"\",INDEX({\"السبت\";\"الأحد\";\"الإثنين\";\"الثلاثاء\";\"الأربعاء\";\"الخميس\";\"الجمعة\"},WEEKDAY(N7,16)))","v":"الثلاثاء"},{"$f":"IF(O7=\"\",\"\",INDEX({\"السبت\";\"الأحد\";\"الإثنين\";\"الثلاثاء\";\"الأربعاء\";\"الخميس\";\"الجمعة\"},WEEKDAY(O7,16)))","v":"الأربعاء"},{"$f":"IF(P7=\"\",\"\",INDEX({\"السبت\";\"الأحد\";\"الإثنين\";\"الثلاثاء\";\"الأربعاء\";\"الخميس\";\"الجمعة\"},WEEKDAY(P7,16)))","v":"الخميس"},{"$f":"IF(Q7=\"\",\"\",INDEX({\"السبت\";\"الأحد\";\"الإثنين\";\"الثلاثاء\";\"الأربعاء\";\"الخميس\";\"الجمعة\"},WEEKDAY(Q7,16)))","v":"الجمعة"},{"$f":"IF(R7=\"\",\"\",INDEX({\"السبت\";\"الأحد\";\"الإثنين\";\"الثلاثاء\";\"الأربعاء\";\"الخميس\";\"الجمعة\"},WEEKDAY(R7,16)))","v":"السبت"},{"$f":"IF(S7=\"\",\"\",INDEX({\"السبت\";\"الأحد\";\"الإثنين\";\"الثلاثاء\";\"الأربعاء\";\"الخميس\";\"الجمعة\"},WEEKDAY(S7,16)))","v":"الأحد"},{"$f":"IF(T7=\"\",\"\",INDEX({\"السبت\";\"الأحد\";\"الإثنين\";\"الثلاثاء\";\"الأربعاء\";\"الخميس\";\"الجمعة\"},WEEKDAY(T7,16)))","v":"الإثنين"},{"$f":"IF(U7=\"\",\"\",INDEX({\"السبت\";\"الأحد\";\"الإثنين\";\"الثلاثاء\";\"الأربعاء\";\"الخميس\";\"الجمعة\"},WEEKDAY(U7,16)))","v":"الثلاثاء"},{"$f":"IF(V7=\"\",\"\",INDEX({\"السبت\";\"الأحد\";\"الإثنين\";\"الثلاثاء\";\"الأربعاء\";\"الخميس\";\"الجمعة\"},WEEKDAY(V7,16)))","v":"الأربعاء"},{"$f":"IF(W7=\"\",\"\",INDEX({\"السبت\";\"الأحد\";\"الإثنين\";\"الثلاثاء\";\"الأربعاء\";\"الخميس\";\"الجمعة\"},WEEKDAY(W7,16)))","v":"الخميس"},{"$f":"IF(X7=\"\",\"\",INDEX({\"السبت\";\"الأحد\";\"الإثنين\";\"الثلاثاء\";\"الأربعاء\";\"الخميس\";\"الجمعة\"},WEEKDAY(X7,16)))","v":"الجمعة"},{"$f":"IF(Y7=\"\",\"\",INDEX({\"السبت\";\"الأحد\";\"الإثنين\";\"الثلاثاء\";\"الأربعاء\";\"الخميس\";\"الجمعة\"},WEEKDAY(Y7,16)))","v":"السبت"},{"$f":"IF(Z7=\"\",\"\",INDEX({\"السبت\";\"الأحد\";\"الإثنين\";\"الثلاثاء\";\"الأربعاء\";\"الخميس\";\"الجمعة\"},WEEKDAY(Z7,16)))","v":"الأحد"},{"$f":"IF(AA7=\"\",\"\",INDEX({\"السبت\";\"الأحد\";\"الإثنين\";\"الثلاثاء\";\"الأربعاء\";\"الخميس\";\"الجمعة\"},WEEKDAY(AA7,16)))","v":"الإثنين"},{"$f":"IF(AB7=\"\",\"\",INDEX({\"السبت\";\"الأحد\";\"الإثنين\";\"الثلاثاء\";\"الأربعاء\";\"الخميس\";\"الجمعة\"},WEEKDAY(AB7,16)))","v":"الثلاثاء"},{"$f":"IF(AC7=\"\",\"\",INDEX({\"السبت\";\"الأحد\";\"الإثنين\";\"الثلاثاء\";\"الأربعاء\";\"الخميس\";\"الجمعة\"},WEEKDAY(AC7,16)))","v":"الأربعاء"},{"$f":"IF(AD7=\"\",\"\",INDEX({\"السبت\";\"الأحد\";\"الإثنين\";\"الثلاثاء\";\"الأربعاء\";\"الخميس\";\"الجمعة\"},WEEKDAY(AD7,16)))","v":"الخميس"},{"$f":"IF(AE7=\"\",\"\",INDEX({\"السبت\";\"الأحد\";\"الإثنين\";\"الثلاثاء\";\"الأربعاء\";\"الخميس\";\"الجمعة\"},WEEKDAY(AE7,16)))","v":"الجمعة"},{"$f":"IF(AF7=\"\",\"\",INDEX({\"السبت\";\"الأحد\";\"الإثنين\";\"الثلاثاء\";\"الأربعاء\";\"الخميس\";\"الجمعة\"},WEEKDAY(AF7,16)))","v":"السبت"},{"$f":"IF(AG7=\"\",\"\",INDEX({\"السبت\";\"الأحد\";\"الإثنين\";\"الثلاثاء\";\"الأربعاء\";\"الخميس\";\"الجمعة\"},WEEKDAY(AG7,16)))","v":"الأحد"},{"$f":"IF(AH7=\"\",\"\",INDEX({\"السبت\";\"الأحد\";\"الإثنين\";\"الثلاثاء\";\"الأربعاء\";\"الخميس\";\"الجمعة\"},WEEKDAY(AH7,16)))","v":"الإثنين"},{"$f":"IF(AI7=\"\",\"\",INDEX({\"السبت\";\"الأحد\";\"الإثنين\";\"الثلاثاء\";\"الأربعاء\";\"الخميس\";\"الجمعة\"},WEEKDAY(AI7,16)))","v":"الثلاثاء"},"غائب","مجاز",null,null,6,"حزيران"]
[null,null,null,null,{"$f":"IF(COLUMNS($E$1:E1)>DAY(DATE($AD$4,INDEX(ROW($A$1:$A$12),MATCH($AD$3,{\"كانون الثاني\";\"شباط\";\"آذار\";\"نيسان\";\"أيار\";\"حزيران\";\"تموز\";\"آب\";\"أيلول\";\"تشرين الأول\";\"تشرين الثاني\";\"كانون الأول\"},0)),COLUMNS($E$1:E1))),\"\",DATE($AD$4,INDEX(ROW($A$1:$A$12),MATCH($AD$3,{\"كانون الثاني\";\"شباط\";\"آذار\";\"نيسان\";\"أيار\";\"حزيران\";\"تموز\";\"آب\";\"أيلول\";\"تشرين الأول\";\"تشرين الثاني\";\"كانون الأول\"},0)),COLUMNS($E$1:E1)))","v":"2022-05-01"},{"$f":"IF(COLUMNS($E$1:F1)>DAY(DATE($AD$4,INDEX(ROW($A$1:$A$12),MATCH($AD$3,{\"كانون الثاني\";\"شباط\";\"آذار\";\"نيسان\";\"أيار\";\"حزيران\";\"تموز\";\"آب\";\"أيلول\";\"تشرين الأول\";\"تشرين الثاني\";\"كانون الأول\"},0)),COLUMNS($E$1:F1))),\"\",DATE($AD$4,INDEX(ROW($A$1:$A$12),MATCH($AD$3,{\"كانون الثاني\";\"شباط\";\"آذار\";\"نيسان\";\"أيار\";\"حزيران\";\"تموز\";\"آب\";\"أيلول\";\"تشرين الأول\";\"تشرين الثاني\";\"كانون الأول\"},0)),COLUMNS($E$1:F1)))","v":"2022-05-02"},{"$f":"IF(COLUMNS($E$1:G1)>DAY(DATE($AD$4,INDEX(ROW($A$1:$A$12),MATCH($AD$3,{\"كانون الثاني\";\"شباط\";\"آذار\";\"نيسان\";\"أيار\";\"حزيران\";\"تموز\";\"آب\";\"أيلول\";\"تشرين الأول\";\"تشرين الثاني\";\"كانون الأول\"},0)),COLUMNS($E$1:G1))),\"\",DATE($AD$4,INDEX(ROW($A$1:$A$12),MATCH($AD$3,{\"كانون الثاني\";\"شباط\";\"آذار\";\"نيسان\";\"أيار\";\"حزيران\";\"تموز\";\"آب\";\"أيلول\";\"تشرين الأول\";\"تشرين الثاني\";\"كانون الأول\"},0)),COLUMNS($E$1:G1)))","v":"2022-05-03"},{"$f":"IF(COLUMNS($E$1:H1)>DAY(DATE($AD$4,INDEX(ROW($A$1:$A$12),MATCH($AD$3,{\"كانون الثاني\";\"شباط\";\"آذار\";\"نيسان\";\"أيار\";\"حزيران\";\"تموز\";\"آب\";\"أيلول\";\"تشرين الأول\";\"تشرين الثاني\";\"كانون الأول\"},0)),COLUMNS($E$1:H1))),\"\",DATE($AD$4,INDEX(ROW($A$1:$A$12),MATCH($AD$3,{\"كانون الثاني\";\"شباط\";\"آذار\";\"نيسان\";\"أيار\";\"حزيران\";\"تموز\";\"آب\";\"أيلول\";\"تشرين الأول\";\"تشرين الثاني\";\"كانون الأول\"},0)),COLUMNS($E$1:H1)))","v":"2022-05-04"},{"$f":"IF(COLUMNS($E$1:I1)>DAY(DATE($AD$4,INDEX(ROW($A$1:$A$12),MATCH($AD$3,{\"كانون الثاني\";\"شباط\";\"آذار\";\"نيسان\";\"أيار\";\"حزيران\";\"تموز\";\"آب\";\"أيلول\";\"تشرين الأول\";\"تشرين الثاني\";\"كانون الأول\"},0)),COLUMNS($E$1:I1))),\"\",DATE($AD$4,INDEX(ROW($A$1:$A$12),MATCH($AD$3,{\"كانون الثاني\";\"شباط\";\"آذار\";\"نيسان\";\"أيار\";\"حزيران\";\"تموز\";\"آب\";\"أيلول\";\"تشرين الأول\";\"تشرين الثاني\";\"كانون الأول\"},0)),COLUMNS($E$1:I1)))","v":"2022-05-05"},{"$f":"IF(COLUMNS($E$1:J1)>DAY(DATE($AD$4,INDEX(ROW($A$1:$A$12),MATCH($AD$3,{\"كانون الثاني\";\"شباط\";\"آذار\";\"نيسان\";\"أيار\";\"حزيران\";\"تموز\";\"آب\";\"أيلول\";\"تشرين الأول\";\"تشرين الثاني\";\"كانون الأول\"},0)),COLUMNS($E$1:J1))),\"\",DATE($AD$4,INDEX(ROW($A$1:$A$12),MATCH($AD$3,{\"كانون الثاني\";\"شباط\";\"آذار\";\"نيسان\";\"أيار\";\"حزيران\";\"تموز\";\"آب\";\"أيلول\";\"تشرين الأول\";\"تشرين الثاني\";\"كانون الأول\"},0)),COLUMNS($E$1:J1)))","v":"2022-05-06"},{"$f":"IF(COLUMNS($E$1:K1)>DAY(DATE($AD$4,INDEX(ROW($A$1:$A$12),MATCH($AD$3,{\"كانون الثاني\";\"شباط\";\"آذار\";\"نيسان\";\"أيار\";\"حزيران\";\"تموز\";\"آب\";\"أيلول\";\"تشرين الأول\";\"تشرين الثاني\";\"كانون الأول\"},0)),COLUMNS($E$1:K1))),\"\",DATE($AD$4,INDEX(ROW($A$1:$A$12),MATCH($AD$3,{\"كانون الثاني\";\"شباط\";\"آذار\";\"نيسان\";\"أيار\";\"حزيران\";\"تموز\";\"آب\";\"أيلول\";\"تشرين الأول\";\"تشرين الثاني\";\"كانون الأول\"},0)),COLUMNS($E$1:K1)))","v":"2022-05-07"},{"$f":"IF(COLUMNS($E$1:L1)>DAY(DATE($AD$4,INDEX(ROW($A$1:$A$12),MATCH($AD$3,{\"كانون الثاني\";\"شباط\";\"آذار\";\"نيسان\";\"أيار\";\"حزيران\";\"تموز\";\"آب\";\"أيلول\";\"تشرين الأول\";\"تشرين الثاني\";\"كانون الأول\"},0)),COLUMNS($E$1:L1))),\"\",DATE($AD$4,INDEX(ROW($A$1:$A$12),MATCH($AD$3,{\"كانون الثاني\";\"شباط\";\"آذار\";\"نيسان\";\"أيار\";\"حزيران\";\"تموز\";\"آب\";\"أيلول\";\"تشرين الأول\";\"تشرين الثاني\";\"كانون الأول\"},0)),COLUMNS($E$1:L1)))","v":"2022-05-08"},{"$f":"IF(COLUMNS($E$1:M1)>DAY(DATE($AD$4,INDEX(ROW($A$1:$A$12),MATCH($AD$3,{\"كانون الثاني\";\"شباط\";\"آذار\";\"نيسان\";\"أيار\";\"حزيران\";\"تموز\";\"آب\";\"أيلول\";\"تشرين الأول\";\"تشرين الثاني\";\"كانون الأول\"},0)),COLUMNS($E$1:M1))),\"\",DATE($AD$4,INDEX(ROW($A$1:$A$12),MATCH($AD$3,{\"كانون الثاني\";\"شباط\";\"آذار\";\"نيسان\";\"أيار\";\"حزيران\";\"تموز\";\"آب\";\"أيلول\";\"تشرين الأول\";\"تشرين الثاني\";\"كانون الأول\"},0)),COLUMNS($E$1:M1)))","v":"2022-05-09"},{"$f":"IF(COLUMNS($E$1:N1)>DAY(DATE($AD$4,INDEX(ROW($A$1:$A$12),MATCH($AD$3,{\"كانون الثاني\";\"شباط\";\"آذار\";\"نيسان\";\"أيار\";\"حزيران\";\"تموز\";\"آب\";\"أيلول\";\"تشرين الأول\";\"تشرين الثاني\";\"كانون الأول\"},0)),COLUMNS($E$1:N1))),\"\",DATE($AD$4,INDEX(ROW($A$1:$A$12),MATCH($AD$3,{\"كانون الثاني\";\"شباط\";\"آذار\";\"نيسان\";\"أيار\";\"حزيران\";\"تموز\";\"آب\";\"أيلول\";\"تشرين الأول\";\"تشرين الثاني\";\"كانون الأول\"},0)),COLUMNS($E$1:N1)))","v":"2022-05-10"},{"$f":"IF(COLUMNS($E$1:O1)>DAY(DATE($AD$4,INDEX(ROW($A$1:$A$12),MATCH($AD$3,{\"كانون الثاني\";\"شباط\";\"آذار\";\"نيسان\";\"أيار\";\"حزيران\";\"تموز\";\"آب\";\"أيلول\";\"تشرين الأول\";\"تشرين الثاني\";\"كانون الأول\"},0)),COLUMNS($E$1:O1))),\"\",DATE($AD$4,INDEX(ROW($A$1:$A$12),MATCH($AD$3,{\"كانون الثاني\";\"شباط\";\"آذار\";\"نيسان\";\"أيار\";\"حزيران\";\"تموز\";\"آب\";\"أيلول\";\"تشرين الأول\";\"تشرين الثاني\";\"كانون الأول\"},0)),COLUMNS($E$1:O1)))","v":"2022-05-11"},{"$f":"IF(COLUMNS($E$1:P1)>DAY(DATE($AD$4,INDEX(ROW($A$1:$A$12),MATCH($AD$3,{\"كانون الثاني\";\"شباط\";\"آذار\";\"نيسان\";\"أيار\";\"حزيران\";\"تموز\";\"آب\";\"أيلول\";\"تشرين الأول\";\"تشرين الثاني\";\"كانون الأول\"},0)),COLUMNS($E$1:P1))),\"\",DATE($AD$4,INDEX(ROW($A$1:$A$12),MATCH($AD$3,{\"كانون الثاني\";\"شباط\";\"آذار\";\"نيسان\";\"أيار\";\"حزيران\";\"تموز\";\"آب\";\"أيلول\";\"تشرين الأول\";\"تشرين الثاني\";\"كانون الأول\"},0)),COLUMNS($E$1:P1)))","v":"2022-05-12"},{"$f":"IF(COLUMNS($E$1:Q1)>DAY(DATE($AD$4,INDEX(ROW($A$1:$A$12),MATCH($AD$3,{\"كانون الثاني\";\"شباط\";\"آذار\";\"نيسان\";\"أيار\";\"حزيران\";\"تموز\";\"آب\";\"أيلول\";\"تشرين الأول\";\"تشرين الثاني\";\"كانون الأول\"},0)),COLUMNS($E$1:Q1))),\"\",DATE($AD$4,INDEX(ROW($A$1:$A$12),MATCH($AD$3,{\"كانون الثاني\";\"شباط\";\"آذار\";\"نيسان\";\"أيار\";\"حزيران\";\"تموز\";\"آب\";\"أيلول\";\"تشرين الأول\";\"تشرين الثاني\";\"كانون الأول\"},0)),COLUMNS($E$1:Q1)))","v":"2022-05-13"},{"$f":"IF(COLUMNS($E$1:R1)>DAY(DATE($AD$4,INDEX(ROW($A$1:$A$12),MATCH($AD$3,{\"كانون الثاني\";\"شباط\";\"آذار\";\"نيسان\";\"أيار\";\"حزيران\";\"تموز\";\"آب\";\"أيلول\";\"تشرين الأول\";\"تشرين الثاني\";\"كانون الأول\"},0)),COLUMNS($E$1:R1))),\"\",DATE($AD$4,INDEX(ROW($A$1:$A$12),MATCH($AD$3,{\"كانون الثاني\";\"شباط\";\"آذار\";\"نيسان\";\"أيار\";\"حزيران\";\"تموز\";\"آب\";\"أيلول\";\"تشرين الأول\";\"تشرين الثاني\";\"كانون الأول\"},0)),COLUMNS($E$1:R1)))","v":"2022-05-14"},{"$f":"IF(COLUMNS($E$1:S1)>DAY(DATE($AD$4,INDEX(ROW($A$1:$A$12),MATCH($AD$3,{\"كانون الثاني\";\"شباط\";\"آذار\";\"نيسان\";\"أيار\";\"حزيران\";\"تموز\";\"آب\";\"أيلول\";\"تشرين الأول\";\"تشرين الثاني\";\"كانون الأول\"},0)),COLUMNS($E$1:S1))),\"\",DATE($AD$4,INDEX(ROW($A$1:$A$12),MATCH($AD$3,{\"كانون الثاني\";\"شباط\";\"آذار\";\"نيسان\";\"أيار\";\"حزيران\";\"تموز\";\"آب\";\"أيلول\";\"تشرين الأول\";\"تشرين الثاني\";\"كانون الأول\"},0)),COLUMNS($E$1:S1)))","v":"2022-05-15"},{"$f":"IF(COLUMNS($E$1:T1)>DAY(DATE($AD$4,INDEX(ROW($A$1:$A$12),MATCH($AD$3,{\"كانون الثاني\";\"شباط\";\"آذار\";\"نيسان\";\"أيار\";\"حزيران\";\"تموز\";\"آب\";\"أيلول\";\"تشرين الأول\";\"تشرين الثاني\";\"كانون الأول\"},0)),COLUMNS($E$1:T1))),\"\",DATE($AD$4,INDEX(ROW($A$1:$A$12),MATCH($AD$3,{\"كانون الثاني\";\"شباط\";\"آذار\";\"نيسان\";\"أيار\";\"حزيران\";\"تموز\";\"آب\";\"أيلول\";\"تشرين الأول\";\"تشرين الثاني\";\"كانون الأول\"},0)),COLUMNS($E$1:T1)))","v":"2022-05-16"},{"$f":"IF(COLUMNS($E$1:U1)>DAY(DATE($AD$4,INDEX(ROW($A$1:$A$12),MATCH($AD$3,{\"كانون الثاني\";\"شباط\";\"آذار\";\"نيسان\";\"أيار\";\"حزيران\";\"تموز\";\"آب\";\"أيلول\";\"تشرين الأول\";\"تشرين الثاني\";\"كانون الأول\"},0)),COLUMNS($E$1:U1))),\"\",DATE($AD$4,INDEX(ROW($A$1:$A$12),MATCH($AD$3,{\"كانون الثاني\";\"شباط\";\"آذار\";\"نيسان\";\"أيار\";\"حزيران\";\"تموز\";\"آب\";\"أيلول\";\"تشرين الأول\";\"تشرين الثاني\";\"كانون الأول\"},0)),COLUMNS($E$1:U1)))","v":"2022-05-17"},{"$f":"IF(COLUMNS($E$1:V1)>DAY(DATE($AD$4,INDEX(ROW($A$1:$A$12),MATCH($AD$3,{\"كانون الثاني\";\"شباط\";\"آذار\";\"نيسان\";\"أيار\";\"حزيران\";\"تموز\";\"آب\";\"أيلول\";\"تشرين الأول\";\"تشرين الثاني\";\"كانون الأول\"},0)),COLUMNS($E$1:V1))),\"\",DATE($AD$4,INDEX(ROW($A$1:$A$12),MATCH($AD$3,{\"كانون الثاني\";\"شباط\";\"آذار\";\"نيسان\";\"أيار\";\"حزيران\";\"تموز\";\"آب\";\"أيلول\";\"تشرين الأول\";\"تشرين الثاني\";\"كانون الأول\"},0)),COLUMNS($E$1:V1)))","v":"2022-05-18"},{"$f":"IF(COLUMNS($E$1:W1)>DAY(DATE($AD$4,INDEX(ROW($A$1:$A$12),MATCH($AD$3,{\"كانون الثاني\";\"شباط\";\"آذار\";\"نيسان\";\"أيار\";\"حزيران\";\"تموز\";\"آب\";\"أيلول\";\"تشرين الأول\";\"تشرين الثاني\";\"كانون الأول\"},0)),COLUMNS($E$1:W1))),\"\",DATE($AD$4,INDEX(ROW($A$1:$A$12),MATCH($AD$3,{\"كانون الثاني\";\"شباط\";\"آذار\";\"نيسان\";\"أيار\";\"حزيران\";\"تموز\";\"آب\";\"أيلول\";\"تشرين الأول\";\"تشرين الثاني\";\"كانون الأول\"},0)),COLUMNS($E$1:W1)))","v":"2022-05-19"},{"$f":"IF(COLUMNS($E$1:X1)>DAY(DATE($AD$4,INDEX(ROW($A$1:$A$12),MATCH($AD$3,{\"كانون الثاني\";\"شباط\";\"آذار\";\"نيسان\";\"أيار\";\"حزيران\";\"تموز\";\"آب\";\"أيلول\";\"تشرين الأول\";\"تشرين الثاني\";\"كانون الأول\"},0)),COLUMNS($E$1:X1))),\"\",DATE($AD$4,INDEX(ROW($A$1:$A$12),MATCH($AD$3,{\"كانون الثاني\";\"شباط\";\"آذار\";\"نيسان\";\"أيار\";\"حزيران\";\"تموز\";\"آب\";\"أيلول\";\"تشرين الأول\";\"تشرين الثاني\";\"كانون الأول\"},0)),COLUMNS($E$1:X1)))","v":"2022-05-20"},{"$f":"IF(COLUMNS($E$1:Y1)>DAY(DATE($AD$4,INDEX(ROW($A$1:$A$12),MATCH($AD$3,{\"كانون الثاني\";\"شباط\";\"آذار\";\"نيسان\";\"أيار\";\"حزيران\";\"تموز\";\"آب\";\"أيلول\";\"تشرين الأول\";\"تشرين الثاني\";\"كانون الأول\"},0)),COLUMNS($E$1:Y1))),\"\",DATE($AD$4,INDEX(ROW($A$1:$A$12),MATCH($AD$3,{\"كانون الثاني\";\"شباط\";\"آذار\";\"نيسان\";\"أيار\";\"حزيران\";\"تموز\";\"آب\";\"أيلول\";\"تشرين الأول\";\"تشرين الثاني\";\"كانون الأول\"},0)),COLUMNS($E$1:Y1)))","v":"2022-05-21"},{"$f":"IF(COLUMNS($E$1:Z1)>DAY(DATE($AD$4,INDEX(ROW($A$1:$A$12),MATCH($AD$3,{\"كانون الثاني\";\"شباط\";\"آذار\";\"نيسان\";\"أيار\";\"حزيران\";\"تموز\";\"آب\";\"أيلول\";\"تشرين الأول\";\"تشرين الثاني\";\"كانون الأول\"},0)),COLUMNS($E$1:Z1))),\"\",DATE($AD$4,INDEX(ROW($A$1:$A$12),MATCH($AD$3,{\"كانون الثاني\";\"شباط\";\"آذار\";\"نيسان\";\"أيار\";\"حزيران\";\"تموز\";\"آب\";\"أيلول\";\"تشرين الأول\";\"تشرين الثاني\";\"كانون الأول\"},0)),COLUMNS($E$1:Z1)))","v":"2022-05-22"},{"$f":"IF(COLUMNS($E$1:AA1)>DAY(DATE($AD$4,INDEX(ROW($A$1:$A$12),MATCH($AD$3,{\"كانون الثاني\";\"شباط\";\"آذار\";\"نيسان\";\"أيار\";\"حزيران\";\"تموز\";\"آب\";\"أيلول\";\"تشرين الأول\";\"تشرين الثاني\";\"كانون الأول\"},0)),COLUMNS($E$1:AA1))),\"\",DATE($AD$4,INDEX(ROW($A$1:$A$12),MATCH($AD$3,{\"كانون الثاني\";\"شباط\";\"آذار\";\"نيسان\";\"أيار\";\"حزيران\";\"تموز\";\"آب\";\"أيلول\";\"تشرين الأول\";\"تشرين الثاني\";\"كانون الأول\"},0)),COLUMNS($E$1:AA1)))","v":"2022-05-23"},{"$f":"IF(COLUMNS($E$1:AB1)>DAY(DATE($AD$4,INDEX(ROW($A$1:$A$12),MATCH($AD$3,{\"كانون الثاني\";\"شباط\";\"آذار\";\"نيسان\";\"أيار\";\"حزيران\";\"تموز\";\"آب\";\"أيلول\";\"تشرين الأول\";\"تشرين الثاني\";\"كانون الأول\"},0)),COLUMNS($E$1:AB1))),\"\",DATE($AD$4,INDEX(ROW($A$1:$A$12),MATCH($AD$3,{\"كانون الثاني\";\"شباط\";\"آذار\";\"نيسان\";\"أيار\";\"حزيران\";\"تموز\";\"آب\";\"أيلول\";\"تشرين الأول\";\"تشرين الثاني\";\"كانون الأول\"},0)),COLUMNS($E$1:AB1)))","v":"2022-05-24"},{"$f":"IF(COLUMNS($E$1:AC1)>DAY(DATE($AD$4,INDEX(ROW($A$1:$A$12),MATCH($AD$3,{\"كانون الثاني\";\"شباط\";\"آذار\";\"نيسان\";\"أيار\";\"حزيران\";\"تموز\";\"آب\";\"أيلول\";\"تشرين الأول\";\"تشرين الثاني\";\"كانون الأول\"},0)),COLUMNS($E$1:AC1))),\"\",DATE($AD$4,INDEX(ROW($A$1:$A$12),MATCH($AD$3,{\"كانون الثاني\";\"شباط\";\"آذار\";\"نيسان\";\"أيار\";\"حزيران\";\"تموز\";\"آب\";\"أيلول\";\"تشرين الأول\";\"تشرين الثاني\";\"كانون الأول\"},0)),COLUMNS($E$1:AC1)))","v":"2022-05-25"},{"$f":"IF(COLUMNS($E$1:AD1)>DAY(DATE($AD$4,INDEX(ROW($A$1:$A$12),MATCH($AD$3,{\"كانون الثاني\";\"شباط\";\"آذار\";\"نيسان\";\"أيار\";\"حزيران\";\"تموز\";\"آب\";\"أيلول\";\"تشرين الأول\";\"تشرين الثاني\";\"كانون الأول\"},0)),COLUMNS($E$1:AD1))),\"\",DATE($AD$4,INDEX(ROW($A$1:$A$12),MATCH($AD$3,{\"كانون الثاني\";\"شباط\";\"آذار\";\"نيسان\";\"أيار\";\"حزيران\";\"تموز\";\"آب\";\"أيلول\";\"تشرين الأول\";\"تشرين الثاني\";\"كانون الأول\"},0)),COLUMNS($E$1:AD1)))","v":"2022-05-26"},{"$f":"IF(COLUMNS($E$1:AE1)>DAY(DATE($AD$4,INDEX(ROW($A$1:$A$12),MATCH($AD$3,{\"كانون الثاني\";\"شباط\";\"آذار\";\"نيسان\";\"أيار\";\"حزيران\";\"تموز\";\"آب\";\"أيلول\";\"تشرين الأول\";\"تشرين الثاني\";\"كانون الأول\"},0)),COLUMNS($E$1:AE1))),\"\",DATE($AD$4,INDEX(ROW($A$1:$A$12),MATCH($AD$3,{\"كانون الثاني\";\"شباط\";\"آذار\";\"نيسان\";\"أيار\";\"حزيران\";\"تموز\";\"آب\";\"أيلول\";\"تشرين الأول\";\"تشرين الثاني\";\"كانون الأول\"},0)),COLUMNS($E$1:AE1)))","v":"2022-05-27"},{"$f":"IF(COLUMNS($E$1:AF1)>DAY(DATE($AD$4,INDEX(ROW($A$1:$A$12),MATCH($AD$3,{\"كانون الثاني\";\"شباط\";\"آذار\";\"نيسان\";\"أيار\";\"حزيران\";\"تموز\";\"آب\";\"أيلول\";\"تشرين الأول\";\"تشرين الثاني\";\"كانون الأول\"},0)),COLUMNS($E$1:AF1))),\"\",DATE($AD$4,INDEX(ROW($A$1:$A$12),MATCH($AD$3,{\"كانون الثاني\";\"شباط\";\"آذار\";\"نيسان\";\"أيار\";\"حزيران\";\"تموز\";\"آب\";\"أيلول\";\"تشرين الأول\";\"تشرين الثاني\";\"كانون الأول\"},0)),COLUMNS($E$1:AF1)))","v":"2022-05-28"},{"$f":"IF(COLUMNS($E$1:AG1)>DAY(DATE($AD$4,INDEX(ROW($A$1:$A$12),MATCH($AD$3,{\"كانون الثاني\";\"شباط\";\"آذار\";\"نيسان\";\"أيار\";\"حزيران\";\"تموز\";\"آب\";\"أيلول\";\"تشرين الأول\";\"تشرين الثاني\";\"كانون الأول\"},0)),COLUMNS($E$1:AG1))),\"\",DATE($AD$4,INDEX(ROW($A$1:$A$12),MATCH($AD$3,{\"كانون الثاني\";\"شباط\";\"آذار\";\"نيسان\";\"أيار\";\"حزيران\";\"تموز\";\"آب\";\"أيلول\";\"تشرين الأول\";\"تشرين الثاني\";\"كانون الأول\"},0)),COLUMNS($E$1:AG1)))","v":"2022-05-29"},{"$f":"IF(COLUMNS($E$1:AH1)>DAY(DATE($AD$4,INDEX(ROW($A$1:$A$12),MATCH($AD$3,{\"كانون الثاني\";\"شباط\";\"آذار\";\"نيسان\";\"أيار\";\"حزيران\";\"تموز\";\"آب\";\"أيلول\";\"تشرين الأول\";\"تشرين الثاني\";\"كانون الأول\"},0)),COLUMNS($E$1:AH1))),\"\",DATE($AD$4,INDEX(ROW($A$1:$A$12),MATCH($AD$3,{\"كانون الثاني\";\"شباط\";\"آذار\";\"نيسان\";\"أيار\";\"حزيران\";\"تموز\";\"آب\";\"أيلول\";\"تشرين الأول\";\"تشرين الثاني\";\"كانون الأول\"},0)),COLUMNS($E$1:AH1)))","v":"2022-05-30"},{"$f":"IF(COLUMNS($E$1:AI1)>DAY(DATE($AD$4,INDEX(ROW($A$1:$A$12),MATCH($AD$3,{\"كانون الثاني\";\"شباط\";\"آذار\";\"نيسان\";\"أيار\";\"حزيران\";\"تموز\";\"آب\";\"أيلول\";\"تشرين الأول\";\"تشرين الثاني\";\"كانون الأول\"},0)),COLUMNS($E$1:AI1))),\"\",DATE($AD$4,INDEX(ROW($A$1:$A$12),MATCH($AD$3,{\"كانون الثاني\";\"شباط\";\"آذار\";\"نيسان\";\"أيار\";\"حزيران\";\"تموز\";\"آب\";\"أيلول\";\"تشرين الأول\";\"تشرين الثاني\";\"كانون الأول\"},0)),COLUMNS($E$1:AI1)))","v":"2022-05-31"},"غ","م",null,null,7,"تموز"]
[null,null,{"$f":"ROW()-7","v":1},"محمد 1",null,null,null,null,null,null,null,null,null,null,null,null,null,null,null,null,null,null,null,null,null,null,null,null,null,null,null,null,null,null,null,{"$f":"COUNTIF(E8:AI8,\"*\"&AJ$7&\"*\")","v":0},{"$f":"COUNTIF(E8:AI8,\"*\"&AK$7&\"*\")","v":0},{"$f":"IF(AJ8>=5,\"إنذار\",\"\")","v":""},null,8,"آب"]
[null,null,{"$f":"ROW()-7","v":2},"محمد 2",null,null,null,null,null,null,null,null,null,null,null,null,null,null,null,null,null,null,null,null,null,null,null,null,null,null,null,null,null,null,null,{"$f":"COUNTIF(E9:AI9,\"*\"&AJ$7&\"*\")","v":0},{"$f":"COUNTIF(E9:AI9,\"*\"&AK$7&\"*\")","v":0},{"$f":"IF(AJ9>=5,\"إنذار\",\"\")","v":""},null,9,"أيلول"]
[null,null,3,"محمد 3",null,null,null,null,null,null,null,null,null,"غائب","غائب",null,null,null,null,null,null,null,null,null,null,null,null,null,null,null,null,null,null,null,null,2,{"$f":"COUNTIF(E10:AI10,\"*\"&AK$7&\"*\")","v":0},{"$f":"IF(AJ10>=5,\"إنذار\",\"\")","v":""},null,10,"تشرين الأول"]
[null,null,4,"محمد 4",null,null,null,"غائب",null,null,null,null,null,null,null,null,null,null,null,null,null,null,null,null,null,null,"غائب",null,null,null,null,null,"غائب",null,null,3,0,"",null,11,"تشرين الثاني"]
[null,null,5,"محمد 5",null,null,null,"غائب",null,null,null,null,null,null,"غائب",null,null,null,"غائب",null,null,null,null,null,null,null,"غائب",null,null,null,null,null,null,null,null,4,0,"",null,12,"كانون الأول"]
[null,null,6,"محمد 6",null,null,null,null,null,null,null,null,null,null,null,null,null,null,null,null,null,null,null,null,null,null,null,null,null,null,null,null,null,null,null,0,0,""]
[null,null,7,"محمد 7",null,null,null,null,null,null,null,null,null,null,null,null,null,null,null,null,null,null,null,null,null,null,null,null,null,null,null,null,null,null,null,0,0,""]
[null,null,8,"محمد 8",null,null,null,null,null,null,null,null,null,null,null,null,null,null,null,null,null,null,null,null,null,null,null,null,null,null,null,null,null,null,null,0,0,""]
[null,null,9,"محمد 9",null,null,null,null,null,null,null,null,null,null,null,null,null,null,null,null,null,null,null,null,null,null,null,null,null,null,null,null,null,null,null,0,0,""]
[null,null,10,"محمد 10",null,null,null,null,null,null,null,null,null,null,null,null,null,null,null,null,null,null,null,null,null,null,null,null,null,null,null,null,null,null,null,0,0,""]
[null,null,11,"محمد 11",null,null,null,null,null,null,null,null,null,null,null,null,null,null,null,null,null,null,null,null,null,null,null,null,null,null,null,null,null,null,null,0,0,""]
[null,null,12,"محمد 12",null,null,null,null,null,null,null,null,null,null,null,null,null,null,null,null,null,null,null,null,null,null,null,null,null,null,null,null,null,null,null,0,0,""]
[null,null,13,"محمد 13",null,null,null,null,null,null,null,null,null,null,null,null,null,null,null,null,null,null,null,null,null,null,null,null,null,null,null,null,null,null,null,0,0,""]
[null,null,14,"محمد 14",null,null,null,null,null,null,null,null,null,null,null,null,null,null,null,null,null,null,null,null,null,null,null,null,null,null,null,null,null,null,null,0,0,""]
[null,null,15,"محمد 15",null,null,null,null,null,null,null,null,null,null,null,null,null,null,null,null,null,null,null,null,null,null,null,null,null,null,null,null,null,null,null,0,0,""]
[null,null,16,"محمد 16",null,null,null,null,null,null,null,null,null,null,null,null,null,null,null,null,null,null,null,null,null,null,null,null,null,null,null,null,null,null,null,0,0,""]
[null,null,17,"محمد 17",null,null,null,null,null,null,null,null,null,null,null,null,null,null,null,null,null,null,null,null,null,null,null,null,null,null,null,null,null,null,null,0,0,""]
[null,null,18,"محمد 18",null,null,null,null,null,null,null,null,null,null,null,null,null,null,null,null,null,null,null,null,null,null,null,null,null,null,null,null,null,null,null,0,0,""]
[null,null,19,"محمد 19",null,null,null,null,null,null,null,null,null,null,null,null,null,null,null,null,null,null,null,null,null,null,null,null,null,null,null,null,null,null,null,0,0,""]
[null,null,20,"محمد 20",null,null,null,null,null,null,null,null,null,null,null,null,null,null,null,null,null,null,null,null,null,null,null,null,null,null,null,null,null,null,null,0,0,""]
[null,null,21,"محمد 21",null,null,null,null,null,null,null,null,null,null,null,null,null,null,null,null,null,null,null,null,null,null,null,null,null,null,null,null,null,null,null,0,0,""]
[null,null,22,"محمد 22",null,null,null,null,null,null,null,null,null,null,null,null,null,null,null,null,null,null,null,null,null,null,null,null,null,null,null,null,null,null,null,0,0,""]
[null,null,23,"محمد 23",null,null,null,null,null,null,null,null,null,null,null,null,null,null,null,null,null,null,null,null,null,null,null,null,null,null,null,null,null,null,null,0,0,""]
[null,null,24,"محمد 24",null,null,null,null,null,null,null,null,null,null,null,null,null,null,null,null,null,null,null,null,null,null,null,null,null,null,null,null,null,null,null,0,0,""]
[null,null,25,"محمد 25",null,null,null,null,null,null,null,null,null,null,null,null,null,null,null,null,null,null,null,null,null,null,null,null,null,null,null,null,null,null,null,0,0,""]
[null,null,26,"محمد 26",null,null,null,null,null,null,null,null,null,null,null,null,null,null,null,null,null,null,null,null,null,null,null,null,null,null,null,null,null,null,null,0,0,""]
[null,null,27,"محمد 27",null,null,null,null,null,null,null,null,null,null,null,null,null,null,null,null,null,null,null,null,null,null,null,null,null,null,null,null,null,null,null,0,0,""]
[null,null,28,"محمد 28",null,null,null,null,null,null,null,null,null,null,null,null,null,null,null,null,null,null,null,null,null,null,null,null,null,null,null,null,null,null,null,0,0,""]
[null,null,29,"محمد 29",null,null,null,null,null,null,null,null,null,null,null,null,null,null,null,null,null,null,null,null,null,null,null,null,null,null,null,null,null,null,null,0,0,""]
[null,null,30,"محمد 30",null,null,null,null,null,null,null,null,null,null,null,null,null,null,null,null,null,null,null,null,null,null,null,null,null,null,null,null,null,null,null,{"$f":"COUNTIF(E37:AI37,\"*\"&AJ$7&\"*\")","v":0},0,""]
[null,null,31,"محمد 31",null,null,null,null,null,null,null,null,null,null,null,null,null,null,null,null,null,null,null,null,null,null,null,null,null,null,null,null,null,null,null,{"$f":"COUNTIF(E38:AI38,\"*\"&AJ$7&\"*\")","v":0},{"$f":"COUNTIF(E38:AI38,\"*\"&AK$7&\"*\")","v":0},{"$f":"IF(AJ38>=5,\"إنذار\",\"\")","v":""},null,null,"كانون الثاني"]
[null,null,32,"محمد 32",null,null,null,null,null,null,null,null,null,null,null,null,null,null,null,null,null,null,null,null,null,null,null,null,null,null,null,null,null,null,null,0,0,"",null,null,"شباط"]
[null,null,33,"محمد 33",null,null,null,null,null,null,null,null,null,null,null,null,null,null,null,null,null,null,null,null,null,null,null,null,null,null,null,null,null,null,null,0,0,"",null,null,"آذار"]
[null,null,34,"محمد 34",null,null,null,null,null,null,null,null,null,null,null,null,null,null,null,null,null,null,null,null,null,null,null,null,null,null,null,null,null,null,null,0,0,"",null,null,"نيسان"]
[null,null,35,"محمد 35",null,null,null,null,null,null,null,null,null,null,null,null,null,null,null,null,null,null,null,null,null,null,null,null,null,null,null,null,null,null,null,0,0,"",null,null,"أيار"]
[null,null,36,"محمد 36",null,null,null,null,null,null,null,null,null,null,null,null,null,null,null,null,null,null,null,null,null,null,null,null,null,null,null,null,null,null,null,0,0,"",null,null,"حزيران"]
[null,null,37,"محمد 37",null,null,null,null,null,null,null,null,null,null,null,null,null,null,null,null,null,null,null,null,null,null,null,null,null,null,null,null,null,null,null,0,0,"",null,null,"تموز"]
[null,null,38,"محمد 38",null,null,null,null,null,null,null,null,null,null,null,null,null,null,null,null,null,null,null,null,null,null,null,null,null,null,null,null,null,null,null,0,0,"",null,null,"آب"]
[null,null,39,"محمد 39",null,null,null,null,null,null,null,null,null,null,null,null,null,null,null,null,null,null,null,null,null,null,null,null,null,null,null,null,null,null,null,0,0,"",null,null,"أيلول"]
[null,null,40,"محمد 40",null,null,null,null,null,null,null,null,null,null,null,null,null,null,null,null,null,null,null,null,null,null,null,null,null,null,null,null,null,null,null,0,0,"",null,null,"تشرين الأول"]
[null,null,41,"محمد 41",null,null,null,null,null,null,null,null,null,null,null,null,null,null,null,null,null,null,null,null,null,null,null,null,null,null,null,null,null,null,null,0,0,"",null,null,"تشرين الثاني"]
[null,null,42,"محمد 42",null,null,null,null,null,null,null,null,null,null,null,null,null,null,null,null,null,null,null,null,null,null,null,null,null,null,null,null,null,null,null,{"$f":"COUNTIF(E49:AI49,\"*\"&AJ$7&\"*\")","v":0},{"$f":"COUNTIF(E49:AI49,\"*\"&AK$7&\"*\")","v":0},{"$f":"IF(AJ49>=5,\"إنذار\",\"\")","v":""},null,null,"كانون الأول"]
[null,null,43,"محمد 43",null,null,null,null,null,null,null,null,null,null,null,null,null,null,null,null,null,null,null,null,null,null,null,null,null,null,null,null,null,null,null,0,0,""]
[null,null,44,"محمد 44",null,null,null,null,null,null,null,null,null,null,null,null,null,null,null,null,null,null,null,null,null,null,null,null,null,null,null,null,null,null,null,0,0,""]
[null,null,45,"محمد 45",null,null,null,null,null,null,null,null,null,null,null,null,null,null,null,null,null,null,null,null,null,null,null,null,null,null,null,null,null,null,null,0,0,""]
[null,null,46,"محمد 46",null,null,null,null,null,null,null,null,null,null,null,null,null,null,null,null,null,null,null,null,null,null,null,null,null,null,null,null,null,null,null,0,0,""]
[null,null,47,"محمد 47",null,null,null,null,null,null,null,null,null,null,null,null,null,null,null,null,null,null,null,null,null,null,null,null,null,null,null,null,null,null,null,0,0,""]
[null,null,48,"محمد 48",null,null,null,null,null,null,null,null,null,null,null,null,null,null,null,null,null,null,null,null,null,null,null,null,null,null,null,null,null,null,null,0,0,""]
[null,null,49,"محمد 49",null,null,null,null,null,null,null,null,null,null,null,null,null,null,null,null,null,null,null,null,null,null,null,null,null,null,null,null,null,null,null,0,0,""]
[null,null,50,"محمد 50",null,null,null,null,null,null,null,null,null,null,null,null,null,null,null,null,null,null,null,null,null,null,null,null,null,null,null,null,null,null,null,0,0,""]
[null,null,51,"محمد 51",null,null,null,null,null,null,null,null,null,null,null,null,null,null,null,null,null,null,null,null,null,null,null,null,null,null,null,null,null,null,null,0,0,""]
[null,null,52,"محمد 52",null,null,null,null,null,null,null,null,null,null,null,null,null,null,null,null,null,null,null,null,null,null,null,null,null,null,null,null,null,null,null,0,0,""]
[null,null,53,"محمد 53",null,null,null,null,null,null,null,null,null,null,null,null,null,null,null,null,null,null,null,null,null,null,null,null,null,null,null,null,null,null,null,0,0,""]
[null,null,54,"محمد 54",null,null,null,null,null,null,null,null,null,null,null,null,null,null,null,null,null,null,null,null,null,null,null,null,null,null,null,null,null,null,null,0,0,""]
[null,null,55,"محمد 55",null,null,null,null,null,null,null,null,null,null,null,null,null,null,null,null,null,null,null,null,null,null,null,null,null,null,null,null,null,null,null,0,0,""]
[null,null,56,"محمد 56",null,null,null,null,null,null,null,null,null,null,null,null,null,null,null,null,null,null,null,null,null,null,null,null,null,null,null,null,null,null,null,0,0,""]
[null,null,57,"محمد 57",null,null,null,null,null,null,null,null,null,null,null,null,null,null,null,null,null,null,null,null,null,null,null,null,null,null,null,null,null,null,null,0,0,""]
[null,null,58,"محمد 58",null,null,null,null,null,null,null,null,null,null,null,null,null,null,null,null,null,null,null,null,null,null,null,null,null,null,null,null,null,null,null,0,0,""]
[null,null,59,"محمد 59",null,null,null,null,null,null,null,null,null,null,null,null,null,null,null,null,null,null,null,null,null,null,null,null,null,null,null,null,null,null,null,0,0,""]
[null,null,60,"محمد 60",null,null,null,null,null,null,null,null,null,null,null,null,null,null,null,null,null,null,null,null,null,null,null,null,null,null,null,null,null,null,null,0,0,""]
[null,null,null,"محمد 61"]
[null,null,null,"محمد 62"]
[null,null,null,"محمد 63"]
[null,null,null,"محمد 64"]

{"sheet":"ورقة1","index":2,"n_rows":24,"n_cols":1,"rows_kept":24,"cut":false,"hidden":true,"merged":[]}
["العاشر أ"]
["العاشر ب"]
["العاشر ج"]
["العاشر د"]
["الحادي عشر العلمي أ"]
["الحادي عشر العلمي ب"]
["الحادي عشر العلمي ج"]
["الحادي عشر العلمي د"]
["الحادي عشر الادبي أ"]
["الحادي عشر الادبي ب"]
["الحادي عشر الادبي ج"]
["الحادي عشر الادبي د"]
["الحادي عشر الادبي هـ"]
["الحادي عشر الادبي و"]
["الثاني عشر الادبي أ"]
["الثاني عشر الادبي ب"]
["الثاني عشر الادبي ج"]
["الثاني عشر الادبي د "]
["الثاني عشر الادبي ز"]
["الثاني عشر الادبي هـ"]
["الثاني عشر الادبي و"]
["الثاني عشر العلمي ا"]
["الثاني عشر العلمي ب"]
["الثاني عشر العلمي ج"]

{"sheet":"غياب شهري","index":3,"n_rows":96,"n_cols":5,"rows_kept":96,"cut":false,"hidden":false,"merged":[[47,0,49,0],[47,1,49,1],[47,2,49,2],[47,3,49,3],[50,0,52,0],[50,1,52,1],[50,2,52,2],[50,3,52,3],[53,0,55,0],[53,1,55,1],[53,2,55,2],[53,3,55,3],[38,0,40,0],[38,1,40,1],[38,2,40,2],[38,3,40,3],[41,0,43,0],[41,1,43,1],[41,2,43,2],[41,3,43,3],[44,0,46,0],[44,1,46,1],[44,2,46,2],[44,3,46,3],[29,0,31,0],[29,1,31,1],[29,2,31,2],[29,3,31,3],[32,0,34,0],[32,1,34,1],[32,2,34,2],[32,3,34,3],[35,0,37,0],[35,1,37,1],[35,2,37,2],[35,3,37,3],[20,0,22,0],[20,1,22,1],[20,2,22,2],[20,3,22,3],[23,0,25,0],[23,1,25,1],[23,2,25,2],[23,3,25,3],[26,0,28,0],[26,1,28,1],[26,2,28,2],[26,3,28,3],[11,1,13,1],[11,2,13,2],[11,3,13,3],[14,0,16,0],[14,1,16,1],[14,2,16,2],[14,3,16,3],[17,0,19,0],[17,1,19,1],[17,2,19,2],[17,3,19,3],[59,1,61,1],[62,1,64,1],[65,1,67,1],[68,1,70,1],[2,0,2,4],[2,5,2,6],[2,8,2,9],[3,0,3,9],[0,0,0,4],[0,5,0,6],[0,8,0,9],[1,0,1,4],[1,5,1,6],[1,8,1,9],[4,4,4,9],[5,0,7,0],[5,1,7,1],[5,2,7,2],[5,3,7,3],[8,0,10,0],[8,1,10,1],[8,2,10,2],[8,3,10,3],[11,0,13,0],[71,0,73,0],[71,2,73,2],[71,3,73,3],[74,0,76,0],[74,2,76,2],[74,3,76,3],[56,0,58,0],[56,2,58,2],[56,3,58,3],[59,0,61,0],[59,2,61,2],[59,3,61,3],[62,0,64,0],[62,2,64,2],[62,3,64,3],[65,0,67,0],[65,2,67,2],[65,3,67,3],[68,0,70,0],[68,2,70,2],[68,3,70,3],[71,1,73,1],[74,1,76,1],[56,1,58,1],[83,0,85,0],[83,2,85,2],[83,3,85,3],[86,0,88,0],[86,2,88,2],[86,3,88,3],[77,0,79,0],[77,2,79,2],[77,3,79,3],[80,0,82,0],[80,2,82,2],[80,3,82,3],[86,1,88,1],[77,1,79,1],[80,1,82,1],[83,1,85,1],[95,0,97,0],[95,2,97,2],[95,3,97,3],[89,0,91,0],[89,2,91,2],[89,3,91,3],[92,0,94,0],[92,2,94,2],[92,3,94,3],[89,1,91,1],[92,1,94,1],[95,1,97,1]]}
[]
[]
[]
[]
["اليوم ","التاريخ ","عدد\nالغياب","عدد \nالحضور","كشــــــــف بأسمـــاء الطلاب  الغــائبيــن "]
[{"$f":"'كشف '!E$6","v":"الأحد"},{"$f":"'كشف '!E$7","v":"2022-05-01"}]
[]
[]
[{"$f":"'كشف '!F$6","v":"الإثنين"},{"$f":"B6+1","v":"2022-05-02"}]
[]
[]
[{"$f":"'كشف '!G$6","v":"الثلاثاء"},{"$f":"B9+1","v":"2022-05-03"}]
[]
[]
[{"$f":"'كشف '!H$6","v":"الأربعاء"},{"$f":"B12+1","v":"2022-05-04"}]
[]
[]
[{"$f":"'كشف '!I$6","v":"الخميس"},{"$f":"B15+1","v":"2022-05-05"}]
[]
[]
[{"$f":"'كشف '!J$6","v":"الجمعة"},{"$f":"B18+1","v":"2022-05-06"}]
[]
[]
[{"$f":"'كشف '!K$6","v":"السبت"},{"$f":"B21+1","v":"2022-05-07"}]
[]
[]
[{"$f":"'كشف '!L$6","v":"الأحد"},{"$f":"B24+1","v":"2022-05-08"}]
[]
[]
[{"$f":"'كشف '!M$6","v":"الإثنين"},{"$f":"B27+1","v":"2022-05-09"}]
[]
[]
[{"$f":"'كشف '!N$6","v":"الثلاثاء"},{"$f":"B30+1","v":"2022-05-10"}]
[]
[]
[{"$f":"'كشف '!O$6","v":"الأربعاء"},{"$f":"B33+1","v":"2022-05-11"}]
[]
[]
[{"$f":"'كشف '!P$6","v":"الخميس"},{"$f":"B36+1","v":"2022-05-12"}]
[]
[]
[{"$f":"'كشف '!Q$6","v":"الجمعة"},{"$f":"B39+1","v":"2022-05-13"}]
[]
[]
[{"$f":"'كشف '!R$6","v":"السبت"},{"$f":"B42+1","v":"2022-05-14"}]
[]
[]
[{"$f":"'كشف '!S$6","v":"الأحد"},{"$f":"B45+1","v":"2022-05-15"}]
[]
[]
[{"$f":"'كشف '!T$6","v":"الإثنين"},{"$f":"B48+1","v":"2022-05-16"}]
[]
[]
[{"$f":"'كشف '!U$6","v":"الثلاثاء"},{"$f":"B51+1","v":"2022-05-17"}]
[]
[]
[{"$f":"'كشف '!V$6","v":"الأربعاء"},{"$f":"B54+1","v":"2022-05-18"}]
[]
[]
[{"$f":"'كشف '!W$6","v":"الخميس"},{"$f":"B57+1","v":"2022-05-19"}]
[]
[]
[{"$f":"'كشف '!X$6","v":"الجمعة"},{"$f":"B60+1","v":"2022-05-20"}]
[]
[]
[{"$f":"'كشف '!Y$6","v":"السبت"},{"$f":"B63+1","v":"2022-05-21"}]
[]
[]
[{"$f":"'كشف '!Z$6","v":"الأحد"},{"$f":"B66+1","v":"2022-05-22"}]
[]
[]
[{"$f":"'كشف '!AA$6","v":"الإثنين"},{"$f":"B69+1","v":"2022-05-23"}]
[]
[]
[{"$f":"'كشف '!AB$6","v":"الثلاثاء"},{"$f":"B72+1","v":"2022-05-24"}]
[]
[]
[{"$f":"'كشف '!AC$6","v":"الأربعاء"},{"$f":"B75+1","v":"2022-05-25"}]
[]
[]
[{"$f":"'كشف '!AD$6","v":"الخميس"},{"$f":"B78+1","v":"2022-05-26"}]
[]
[]
[{"$f":"'كشف '!AE$6","v":"الجمعة"},{"$f":"B81+1","v":"2022-05-27"}]
[]
[]
[{"$f":"'كشف '!AF$6","v":"السبت"},{"$f":"B84+1","v":"2022-05-28"}]
[]
[]
[{"$f":"'كشف '!AG$6","v":"الأحد"},{"$f":"B87+1","v":"2022-05-29"}]
[]
[]
[{"$f":"'كشف '!AH$6","v":"الإثنين"},{"$f":"B90+1","v":"2022-05-30"}]
[]
[]
[{"$f":"'كشف '!AI$6","v":"الثلاثاء"},{"$f":"B93+1","v":"2022-05-31"}]